{"text_format":"1","workbook":"xlsx","n_sheets":1,"sheets":["Sheet1"],"not_rendered":{"charts":0,"images":0,"macros":1,"external_links":0,"defined_names":142,"comments":1,"pivot_tables":0},"unopened":[],"bounds":{"document_bytes":16777216,"sheet_cells":100000,"rows_first":2000,"rows_last":500,"rows_between":2000,"halvings":0,"cell_chars":16384,"cell_head_chars":4096},"cells_cut":0,"cells_raw":0,"read":"whole","date_system":"1900"}

{"sheet":"Sheet1","index":0,"n_rows":609,"n_cols":38,"rows_kept":609,"cut":false,"hidden":false,"merged":[[465,14,465,16],[466,14,466,16],[443,3,443,13],[444,3,444,13],[443,14,443,16],[444,14,444,16],[424,17,424,18],[425,17,425,18],[426,17,426,18],[427,17,427,18],[428,17,428,18],[342,11,342,13],[420,14,420,16],[424,3,424,13],[425,3,425,13],[426,3,426,13],[427,3,427,13],[428,3,428,13],[424,14,424,16],[425,14,425,16],[426,14,426,16],[427,14,427,16],[428,14,428,16],[524,12,524,14],[530,13,530,14],[522,3,522,6],[522,7,522,8],[520,3,521,6],[520,7,521,8],[543,10,543,12],[544,10,544,12],[545,10,545,12],[537,5,537,10],[520,9,521,11],[520,12,521,14],[522,9,522,11],[522,12,522,14],[527,19,527,20],[295,14,295,15],[295,18,295,19],[296,3,296,13],[296,16,296,17],[296,14,296,15],[296,18,296,19],[297,3,297,13],[297,16,297,17],[297,14,297,15],[297,18,297,19],[358,3,358,13],[358,14,358,16],[359,3,359,13],[359,14,359,16],[524,15,524,16],[523,3,523,6],[523,7,523,8],[523,9,523,11],[523,12,523,14],[523,15,523,16],[524,3,524,6],[524,7,524,8],[524,9,524,11],[10,3,10,14],[411,17,416,18],[410,17,410,18],[392,17,396,18],[391,17,391,18],[542,10,542,12],[525,3,525,6],[525,7,525,8],[525,9,525,11],[525,12,525,14],[525,15,525,16],[36,3,36,28],[500,17,500,19],[501,17,501,19],[503,17,503,19],[500,3,500,16],[501,3,501,16],[503,3,503,16],[479,3,479,13],[479,14,479,16],[490,3,490,10],[490,11,490,13],[492,3,492,10],[492,11,492,13],[537,15,537,20],[537,25,537,27],[540,3,540,9],[541,3,541,9],[542,3,542,9],[543,3,543,9],[544,3,544,9],[545,3,545,9],[540,10,540,12],[541,10,541,12],[608,3,608,28],[573,3,573,28],[551,3,551,28],[565,13,565,15],[564,13,564,15],[565,16,565,18],[564,16,564,18],[564,3,564,12],[565,3,565,12],[566,13,566,15],[566,16,566,18],[595,3,595,19],[580,3,586,28],[605,3,605,19],[606,3,606,19],[596,3,596,19],[597,3,597,19],[598,3,598,19],[599,3,599,19],[600,3,600,19],[601,3,601,19],[602,3,602,19],[603,3,603,19],[604,3,604,19],[490,14,490,18],[492,14,492,18],[490,19,490,21],[492,19,492,21],[63,9,63,21],[294,3,294,13],[294,16,294,17],[294,14,294,15],[294,18,294,19],[295,3,295,13],[295,16,295,17],[269,3,269,28],[260,3,260,13],[260,14,260,16],[260,17,260,19],[261,3,261,13],[261,14,261,16],[261,17,261,19],[263,3,263,13],[263,14,263,16],[263,17,263,19],[252,3,252,10],[252,11,252,15],[253,3,253,10],[520,15,521,16],[522,15,522,16],[510,3,510,28],[491,3,491,10],[491,11,491,13],[491,14,491,18],[491,19,491,21],[502,3,502,16],[502,17,502,19],[253,11,253,15],[249,16,249,20],[249,21,249,25],[250,16,250,20],[251,16,251,20],[252,16,252,20],[253,16,253,20],[250,21,250,25],[251,21,251,25],[252,21,252,25],[253,21,253,25],[248,11,248,15],[248,16,248,20],[248,21,248,25],[249,3,249,10],[249,11,249,15],[250,3,250,10],[251,3,251,10],[251,11,251,15],[250,11,250,15],[238,23,238,25],[239,23,239,25],[230,3,230,10],[231,3,231,10],[232,3,232,10],[233,3,233,10],[234,3,234,10],[235,3,235,10],[236,3,236,10],[237,3,237,10],[238,3,238,10],[233,23,233,25],[234,23,234,25],[235,23,235,25],[236,23,236,25],[233,18,233,20],[234,18,234,20],[235,18,235,20],[236,18,236,20],[237,18,237,20],[238,18,238,20],[239,18,239,20],[233,21,233,22],[234,21,234,22],[237,23,237,25],[225,23,225,25],[226,23,226,25],[227,23,227,25],[228,23,228,25],[229,23,229,25],[230,23,230,25],[231,23,231,25],[232,23,232,25],[214,21,214,22],[215,21,215,22],[216,21,216,22],[217,21,217,22],[220,23,220,25],[221,23,221,25],[222,23,222,25],[223,23,223,25],[224,23,224,25],[219,23,219,25],[214,23,214,25],[215,23,215,25],[216,23,216,25],[217,23,217,25],[218,23,218,25],[218,21,218,22],[199,23,199,25],[200,23,200,25],[201,23,201,25],[202,23,202,25],[203,23,203,25],[204,23,204,25],[212,23,212,25],[213,23,213,25],[208,23,208,25],[209,23,209,25],[210,23,210,25],[211,23,211,25],[200,18,200,20],[201,18,201,20],[202,18,202,20],[203,18,203,20],[204,18,204,20],[205,18,205,20],[205,23,205,25],[206,23,206,25],[207,23,207,25],[206,18,206,20],[207,18,207,20],[215,18,215,20],[216,18,216,20],[217,18,217,20],[218,18,218,20],[208,18,208,20],[209,18,209,20],[210,18,210,20],[239,21,239,22],[222,21,222,22],[223,21,223,22],[224,21,224,22],[225,21,225,22],[226,21,226,22],[227,21,227,22],[228,21,228,22],[229,21,229,22],[230,21,230,22],[231,21,231,22],[232,21,232,22],[219,21,219,22],[220,21,220,22],[221,21,221,22],[219,18,219,20],[220,18,220,20],[237,16,237,17],[238,16,238,17],[230,16,230,17],[231,16,231,17],[232,16,232,17],[233,16,233,17],[235,21,235,22],[236,21,236,22],[237,21,237,22],[238,21,238,22],[230,18,230,20],[231,18,231,20],[232,18,232,20],[234,16,234,17],[235,16,235,17],[236,16,236,17],[221,18,221,20],[222,18,222,20],[229,18,229,20],[223,18,223,20],[224,18,224,20],[225,18,225,20],[226,18,226,20],[227,18,227,20],[228,18,228,20],[239,16,239,17],[196,21,196,22],[197,21,197,22],[198,21,198,22],[199,21,199,22],[200,21,200,22],[201,21,201,22],[202,21,202,22],[203,21,203,22],[204,21,204,22],[205,21,205,22],[206,21,206,22],[207,21,207,22],[208,21,208,22],[209,21,209,22],[210,21,210,22],[211,21,211,22],[212,21,212,22],[213,21,213,22],[225,16,225,17],[226,16,226,17],[227,16,227,17],[228,16,228,17],[229,16,229,17],[218,16,218,17],[219,16,219,17],[220,16,220,17],[221,16,221,17],[222,16,222,17],[223,16,223,17],[224,16,224,17],[208,16,208,17],[209,16,209,17],[210,16,210,17],[211,16,211,17],[212,16,212,17],[213,16,213,17],[214,16,214,17],[215,16,215,17],[216,16,216,17],[229,11,229,12],[229,13,229,15],[239,13,239,15],[230,13,230,15],[231,13,231,15],[232,13,232,15],[233,13,233,15],[234,13,234,15],[235,13,235,15],[236,13,236,15],[237,13,237,15],[238,13,238,15],[230,11,230,12],[231,11,231,12],[232,11,232,12],[233,11,233,12],[234,11,234,12],[235,11,235,12],[236,11,236,12],[237,11,237,12],[238,11,238,12],[239,11,239,12],[224,11,224,12],[224,13,224,15],[225,11,225,12],[225,13,225,15],[226,11,226,12],[226,13,226,15],[227,11,227,12],[227,13,227,15],[228,13,228,15],[228,11,228,12],[219,13,219,15],[220,11,220,12],[220,13,220,15],[221,11,221,12],[221,13,221,15],[222,11,222,12],[222,13,222,15],[223,11,223,12],[223,13,223,15],[219,11,219,12],[229,3,229,10],[195,13,195,15],[195,11,195,12],[195,16,195,17],[195,18,195,20],[196,11,196,12],[196,13,196,15],[197,11,197,12],[197,13,197,15],[198,11,198,12],[198,13,198,15],[199,11,199,12],[199,13,199,15],[200,11,200,12],[200,13,200,15],[201,11,201,12],[201,13,201,15],[202,11,202,12],[202,13,202,15],[203,11,203,12],[215,11,215,12],[215,13,215,15],[213,11,213,12],[218,11,218,12],[218,13,218,15],[203,13,203,15],[211,11,211,12],[211,13,211,15],[212,11,212,12],[212,13,212,15],[193,11,193,15],[189,3,189,10],[214,11,214,12],[214,13,214,15],[213,13,213,15],[199,3,199,10],[198,3,198,10],[191,3,191,10],[192,3,192,10],[190,11,190,15],[193,3,193,10],[189,16,189,20],[199,16,199,17],[197,18,197,20],[198,18,198,20],[199,18,199,20],[216,11,216,12],[216,13,216,15],[217,11,217,12],[217,13,217,15],[200,16,200,17],[201,16,201,17],[202,16,202,17],[203,16,203,17],[204,16,204,17],[205,16,205,17],[206,16,206,17],[207,16,207,17],[217,16,217,17],[211,18,211,20],[212,18,212,20],[213,18,213,20],[214,18,214,20],[191,11,191,15],[192,11,192,15],[239,3,239,10],[204,11,204,12],[204,13,204,15],[205,11,205,12],[205,13,205,15],[206,11,206,12],[206,13,206,15],[207,11,207,12],[207,13,207,15],[208,11,208,12],[208,13,208,15],[209,11,209,12],[209,13,209,15],[210,11,210,12],[210,13,210,15],[219,3,219,10],[220,3,220,10],[221,3,221,10],[222,3,222,10],[223,3,223,10],[224,3,224,10],[225,3,225,10],[218,3,218,10],[226,3,227,10],[153,14,153,16],[185,11,185,15],[186,11,188,15],[186,3,188,10],[152,17,152,19],[195,21,195,22],[195,23,195,25],[196,16,196,17],[197,16,197,17],[193,21,193,25],[196,23,196,25],[197,23,197,25],[194,11,194,15],[189,11,189,15],[196,3,196,10],[197,3,197,10],[153,17,153,19],[196,18,196,20],[194,3,194,10],[195,3,195,10],[194,16,194,20],[194,21,194,25],[189,21,189,25],[190,3,190,10],[149,3,150,10],[151,3,151,10],[185,21,185,25],[186,21,188,25],[185,16,185,20],[186,16,188,20],[169,19,169,21],[170,19,170,21],[159,3,159,10],[159,11,159,13],[159,14,159,16],[159,17,159,19],[159,20,159,22],[170,22,170,25],[172,3,172,10],[172,11,172,15],[172,16,172,18],[172,19,172,21],[172,22,172,25],[152,3,152,10],[153,3,153,10],[152,11,152,13],[153,11,153,13],[152,14,152,16],[149,20,150,22],[151,20,151,22],[149,23,150,24],[151,23,151,24],[151,11,151,13],[149,11,150,13],[149,14,150,16],[151,14,151,16],[149,17,150,19],[151,17,151,19],[124,16,124,18],[124,19,124,21],[124,22,124,23],[126,24,126,25],[126,3,126,10],[126,11,126,12],[126,13,126,15],[126,16,126,18],[126,19,126,21],[126,22,126,23],[107,17,107,19],[108,3,108,13],[108,14,108,16],[108,17,108,19],[119,16,119,21],[119,22,119,23],[120,22,120,23],[121,22,121,23],[119,24,119,25],[120,24,120,25],[121,24,121,25],[120,16,120,18],[121,16,121,18],[120,19,120,21],[121,19,121,21],[104,3,104,13],[104,14,104,16],[104,17,104,19],[88,3,88,13],[88,14,88,16],[88,17,88,19],[102,3,102,13],[102,14,102,16],[102,17,102,19],[86,14,86,16],[86,17,86,19],[87,14,87,16],[87,17,87,19],[86,3,86,13],[87,3,87,13],[103,3,103,13],[103,14,103,16],[103,17,103,19],[53,8,53,11],[59,3,59,28],[39,8,39,14],[38,15,38,20],[39,21,39,27],[49,5,49,27],[51,11,51,13],[39,15,39,20],[51,5,51,7],[51,17,51,27],[53,17,53,19],[190,16,190,20],[191,16,191,20],[192,16,192,20],[193,16,193,20],[190,21,190,25],[191,21,191,25],[192,21,192,25],[198,16,198,17],[198,23,198,25],[301,3,301,13],[301,16,301,17],[301,14,301,15],[301,18,301,19],[291,3,291,13],[291,16,291,17],[291,14,291,15],[289,3,290,13],[289,16,290,17],[289,14,290,15],[293,3,293,13],[298,3,298,13],[293,16,293,17],[298,16,298,17],[293,14,293,15],[298,14,298,15],[293,18,293,19],[298,18,298,19],[289,18,290,19],[291,18,291,19],[292,3,292,13],[292,16,292,17],[292,14,292,15],[292,18,292,19],[302,3,302,13],[302,16,302,17],[302,14,302,15],[302,18,302,19],[303,3,303,13],[303,16,303,17],[303,14,303,15],[303,18,303,19],[304,3,304,13],[304,16,304,17],[304,14,304,15],[304,18,304,19],[305,3,305,13],[305,16,305,17],[305,14,305,15],[305,18,305,19],[306,18,306,19],[321,8,321,14],[321,19,321,20],[321,25,321,26],[323,13,323,14],[318,11,318,26],[313,11,313,26],[325,11,325,13],[325,3,325,10],[327,3,327,10],[328,3,328,10],[329,3,329,10],[330,3,330,10],[331,3,331,10],[332,3,332,10],[333,3,333,10],[334,3,334,10],[335,3,335,10],[336,3,336,10],[327,11,327,13],[328,11,328,13],[329,11,329,13],[330,11,330,13],[331,11,331,13],[332,11,332,13],[333,11,333,13],[334,11,334,13],[335,11,335,13],[336,11,336,13],[362,3,362,13],[362,14,362,16],[363,3,363,13],[363,14,363,16],[364,3,364,13],[364,14,364,16],[365,3,365,13],[365,14,365,16],[374,3,374,13],[374,14,374,16],[375,3,375,13],[375,14,375,16],[376,3,376,13],[376,14,376,16],[377,3,377,13],[377,14,377,16],[378,3,378,13],[378,14,378,16],[379,3,379,13],[379,14,379,16],[397,17,397,18],[398,17,398,18],[399,17,399,18],[401,17,401,18],[400,3,400,13],[400,14,400,16],[400,17,400,18],[380,3,380,13],[380,14,380,16],[381,3,381,13],[381,14,381,16],[391,3,391,13],[391,14,391,16],[389,7,389,18],[415,3,415,13],[414,3,414,13],[414,14,414,16],[415,14,415,16],[392,3,392,13],[392,14,392,16],[393,3,393,13],[393,14,393,16],[395,3,395,13],[395,14,395,16],[396,3,396,13],[396,14,396,16],[397,3,397,13],[397,14,397,16],[394,3,394,13],[394,14,394,16],[398,3,398,13],[398,14,398,16],[399,3,399,13],[399,14,399,16],[401,3,401,13],[401,14,401,16],[410,3,410,13],[410,14,410,16],[423,14,423,16],[423,17,423,18],[416,3,416,13],[416,14,416,16],[421,14,421,16],[417,3,417,13],[417,14,417,16],[417,17,417,18],[418,3,418,13],[470,3,470,13],[470,14,470,16],[478,3,478,13],[478,14,478,16],[454,3,454,13],[468,3,468,13],[468,14,468,16],[469,3,469,13],[469,14,469,16],[456,14,456,16],[457,3,457,13],[457,14,457,16],[463,3,463,13],[463,14,463,16],[458,3,458,13],[458,14,458,16],[459,3,459,13],[459,14,459,16],[460,3,460,13],[460,14,460,16],[464,3,464,13],[465,3,465,13],[466,3,466,13],[464,14,464,16],[20,11,21,19],[419,17,419,18],[420,17,420,18],[421,17,421,18],[461,3,461,13],[462,3,462,13],[461,14,461,16],[462,14,462,16],[419,3,419,13],[420,3,420,13],[441,14,441,16],[440,14,440,16],[442,14,442,16],[446,14,446,16],[430,3,430,13],[430,14,430,16],[430,17,430,18],[431,3,431,13],[431,14,431,16],[431,17,431,18],[419,14,419,16],[360,3,360,13],[412,3,412,13],[412,14,412,16],[105,3,105,13],[106,3,106,13],[105,14,105,16],[106,14,106,16],[105,17,105,19],[106,17,106,19],[122,3,122,10],[123,3,123,10],[122,11,122,12],[123,11,123,12],[122,13,122,15],[123,13,123,15],[122,16,122,18],[123,16,123,18],[122,19,122,21],[123,19,123,21],[121,3,121,10],[121,11,121,12],[121,13,121,15],[119,3,120,10],[119,11,120,12],[119,13,120,15],[107,3,107,13],[107,14,107,16],[122,22,122,23],[123,22,123,23],[122,24,122,25],[123,24,123,25],[152,20,152,22],[153,20,153,22],[158,3,158,10],[158,11,158,13],[158,14,158,16],[158,17,158,19],[158,20,158,22],[152,23,152,24],[158,23,158,24],[124,24,124,25],[125,3,125,10],[125,11,125,12],[125,13,125,15],[125,16,125,18],[125,19,125,21],[125,22,125,23],[125,24,125,25],[124,3,124,10],[124,11,124,12],[124,13,124,15],[411,3,411,13],[411,14,411,16],[445,3,445,13],[153,23,153,24],[171,3,171,10],[171,11,171,15],[171,16,171,18],[171,19,171,21],[171,22,171,25],[262,3,262,13],[262,14,262,16],[262,17,262,19],[159,23,159,24],[169,3,169,10],[170,3,170,10],[169,11,169,15],[170,11,170,15],[169,16,169,18],[170,16,170,18],[169,22,169,25],[413,3,413,13],[413,14,413,16],[299,3,299,13],[300,3,300,13],[299,16,299,17],[300,16,300,17],[299,14,299,15],[300,14,300,15],[299,18,299,19],[300,18,300,19],[361,3,361,13],[360,14,360,16],[361,14,361,16],[356,3,356,13],[326,11,326,13],[326,3,326,10],[355,3,355,13],[356,14,356,16],[355,14,355,16],[357,3,357,13],[357,14,357,16],[337,11,337,13],[337,3,337,10],[341,11,341,13],[343,11,343,13],[344,11,344,13],[345,11,345,13],[346,11,346,13],[445,14,445,16],[418,14,418,16],[418,17,418,18],[467,3,467,13],[467,14,467,16],[455,3,455,13],[454,14,454,16],[455,14,455,16],[456,3,456,13],[440,3,440,13],[441,3,441,13],[442,3,442,13],[446,3,446,13],[447,3,447,13],[447,14,447,16],[429,3,429,13],[429,14,429,16],[429,17,429,18],[422,3,422,13],[422,14,422,16],[422,17,422,18],[421,3,421,13],[423,3,423,13],[154,3,154,10],[154,11,154,13],[154,14,154,16],[154,17,154,19],[154,20,154,22],[154,23,154,24],[155,3,155,10],[155,11,155,13],[155,14,155,16],[155,17,155,19],[155,20,155,22],[155,23,155,24],[156,3,156,10],[156,11,156,13],[156,14,156,16],[156,17,156,19],[156,20,156,22],[156,23,156,24],[157,3,157,10],[157,11,157,13],[157,14,157,16],[157,17,157,19],[157,20,157,22],[157,23,157,24]]}
[null,null,null,null,null,null,null,null,null,null,null,null,null,null,null,null,null,null,null,null,null,null,null,null,null,null,null,null,null,null,null,null,null,null,null,null,null,"Error"]
[null,null,null,"       INDIVIDUAL TAX RETURN INFORMATION FOR THE YEAR ENDED 30 JUNE 2023",null,null,null,null,null,null,null,null,null,null,null,null,null,null,null,null,null,null,null,null,null,null,null,null,null,null,null,null,null,null,null,null,null,"Count"]
[]
[null,null,null,"This form is interactive. Depending on your responses to the \"Yes / No\" questions, you will be prompted for further information. When you"]
[null,null,null,"have completed the form, please save it to your device, then send it to us by email or by using the \"Online Submission\" page on our website."]
[null,null,null,"Depending on your circumstances, it may also be necessary to attach additional information or supporting documents. If this is the case,"]
[null,null,null,"these will be listed at the end of the form, after you have completed all questions. We will contact you if we need further details or"]
[null,null,null,"clarification of any matters."]
[]
[null,null,null,"Please answer ALL of the prompted questions. All monetary information should be rounded to the nearest whole dollar."]
[null,null,null,"All input is to boxes like this. Dates should be entered as dd/mm/yy",null,null,null,null,null,null,null,null,null,null,null," After each entry, press \"ENTER\" or select another input cell."]
[null,null,null,"It may occasionally be necessary to scroll down to see the next prompted question (use your mouse wheel, or the right-hand scroll bar)."]
[null,null,null,"If you select the wrong \"Yes / No\" answer to a question, you can correct this simply by selecting again."]
[null,null,null,"After you complete and verify the form, Red font will indicate any missing information."]
[]
[null,null,null,"To use this form, you MUST have \"Macros\" enabled in your version of Microsoft Excel."]
[null,null,null,"If you see a Security Warning that \"Macros have been disabled\", simply click on the \"Options\" button and select \"Enable this content\"."]
[null,null,null,"Otherwise, Select the \"File\" menu in the top left-hand corner (or, in older versions, the \"Office\" button), then:"]
[null,null,null," - Options / Trust Center / Trust Center Settings / Macro Settings, and choose \"Enable all macros . . . . \""]
[]
[null,null,null,null,null,null,null,null,null,null,null,"You can test your Macro settings HERE >>"]
[]
[]
[]
[]
[null,null,null,"Important Note:"]
[null,null,null,"This form is intended merely to help you provide the information we need to prepare your income tax return. It covers the key income and"]
[null,null,null,"expense items which are relevant for most individual taxpayers. No warranty is made of completeness, and you remain primarily responsible"]
[null,null,null,"to provide us with complete and accurate information. If you have derived any other taxable income which is NOT included on this form"]
[null,null,null,"(for example, income from business activities), please ensure that this is separately disclosed."]
[]
[null,null,null,"By completing this form and submitting it to us, you are confirming that:"]
[null,null,null," - you have read, and agree with, the Terms of Engagement available on our website, and"]
[null,null,null," - you agree to appoint KMT Consulting as your Tax Agent (if you have not already done so)."]
[]
[]
[null,null,null,"YOUR NAME AND CONTACT INFORMATION"]
[]
[null,null,null,null,null,null,null,null,"First Name (full legal name)",null,null,null,null,null,null,"Middle Name (optional)",null,null,null,null,null,"Surname (Family name)"]
[null,null,null,"Please enter your name:"]
[null,null,null,{"$f":"IF(finalise=\"\",\"\",IF(OR(firstname=\"\",V40=\"\"),\"Input required\",\"\"))","v":""},null,null,null,null,null,null,null,null,null,null,null,null,null,null,null,null,null,null,null,null,null,null,null,null,null,null,null,null,null,null,null,null,null,{"$f":"IF(D41=\"\",0,1)","v":0}]
[null,null,null,"Are you an existing client of KMT Consulting?",null,null,null,null,null,null,null,null,null,null,null,null,null,null,null,null,null,{"$f":"IF(B42=\"\",\"\",B42)","v":""}]
[null,null,null,{"$f":"IF(existingyn=\"No\",\"Please provide proof of identity (eg: copy of birth certificate, driver's licence or passport)\",\"\")","v":""}]
[]
[null,null,null,"Have any of your contact details changed since your last tax lodgement? (address / phone / email)?",null,null,null,null,null,null,null,null,null,null,null,null,null,null,null,null,null,{"$f":"IF(B45=\"\",\"\",B45)","v":""}]
[]
[]
[null,null,null,"Please provide your current details:"]
[]
[null,null,null,"Address:"]
[]
[null,null,null,"Phone:",null,null,null,null,null,"Mobile:",null,null,null,null,null,"Email:"]
[null,null,null,{"$f":"IF(finalise=\"\",\"\",IF(AND(detailsyn=\"Yes\",clientaddress=\"\",F52=\"\",L52=\"\",R52=\"\"),\"Input required\",\"\"))","v":""},null,null,null,null,null,null,null,null,null,null,null,null,null,null,null,null,null,null,null,null,null,null,null,null,null,null,null,null,null,null,null,null,null,{"$f":"IF(D53=\"\",0,1)","v":0}]
[null,null,null,"Your Tax File Number:",null,null,null,null,null,null,null,null,null,"Your date of birth:",null,null,null,null,null,null,"  dd/mm/yy"]
[null,null,null,{"$f":"IF(finalise=\"\",\"\",IF(AND(existingyn=\"No\",OR(clientaddress=\"\",I54=\"\",R54=\"\")),\"Input Required\",\"\"))","v":""},null,null,null,null,null,null,null,null,null,null,null,null,null,null,null,null,null,null,null,null,null,null,null,null,null,null,null,null,null,null,null,null,null,{"$f":"IF(D55=\"\",0,1)","v":0}]
[]
[]
[]
[]
[null,null,null,"INCOME DETAILS"]
[]
[null,null,null,"Did you earn any income as an employee?",null,null,null,null,null,null,null,null,null,null,null,null,null,null,null,null,null,{"$f":"IF(B62=\"\",\"\",B62)","v":""}]
[]
[null,null,null,"What is your occupation?"]
[]
[null,null,null,"Are ALL your payment summaries finalised and available on \"myGov\"?",null,null,null,null,null,null,null,null,null,null,null,null,null,null,null,null,null,{"$f":"IF(B66=\"\",\"\",B66)","v":""}]
[]
[null,null,null,"Please attach copies of any payment summaries which are NOT available on \"myGov.\""]
[]
[]
[null,null,null,"Did you receive any Employment Termination Payments (ETP's)?",null,null,null,null,null,null,null,null,null,null,null,null,null,null,null,null,null,{"$f":"IF(B71=\"\",\"\",B71)","v":""}]
[]
[]
[null,null,null,"Are ALL your ETP summaries finalised and available on \"myGov\"?",null,null,null,null,null,null,null,null,null,null,null,null,null,null,null,null,null,{"$f":"IF(B74=\"\",\"\",B74)","v":""}]
[]
[null,null,null,"Please attach copies of any ETP summaries which are NOT available on \"myGov.\""]
[]
[]
[null,null,null,"Did you receive any Government pensions or allowances?",null,null,null,null,null,null,null,null,null,null,null,null,null,null,null,null,null,{"$f":"IF(B79=\"\",\"\",B79)","v":""}]
[null,null,null,"(Do NOT include Family Tax Benefit or Child Care Rebate)"]
[]
[]
[null,null,null,"These details are usually available from the ATO. Do you want us to rely on the ATO information?",null,null,null,null,null,null,null,null,null,null,null,null,null,null,null,null,null,{"$f":"IF(B83=\"\",\"\",B83)","v":""}]
[]
[null,null,null,"Please provide the following information, and attach document copies:"]
[]
[null,null,null,"Type of payment",null,null,null,null,null,null,null,null,null,null,"Gross",null,null,"Tax Withheld"]
[]
[]
[null,null,null,{"$f":"IF(finalise=\"\",\"\",IF(AND(atopensyn=\"No\",SUM(O88:T89)=0),\"Input required\",\"\"))","v":""},null,null,null,null,null,null,null,null,null,null,null,null,null,null,null,null,null,null,null,null,null,null,null,null,null,null,null,null,null,null,null,null,null,{"$f":"IF(D90=\"\",0,1)","v":0}]
[]
[null,null,null,"Did you receive any assessable payments from Superannuation Funds?",null,null,null,null,null,null,null,null,null,null,null,null,null,null,null,null,null,{"$f":"IF(B92=\"\",\"\",B92)","v":""}]
[null,null,null,{"$f":"IF(supfundyn=\"Yes\",\"Please attach payment summaries.\",\"\")","v":""}]
[]
[]
[null,null,null,"Did you receive any INTEREST from financial institutions or other sources?",null,null,null,null,null,null,null,null,null,null,null,null,null,null,null,null,null,{"$f":"IF(B96=\"\",\"\",B96)","v":""}]
[]
[]
[null,null,null,"These details are usually available from the ATO. Do you want us to rely on the ATO information?",null,null,null,null,null,null,null,null,null,null,null,null,null,null,null,null,null,{"$f":"IF(B99=\"\",\"\",B99)","v":""}]
[]
[null,null,null,"Please provide the following information (for joint accounts, include your share only):"]
[]
[null,null,null,"Name of Financial Institution (or other source)",null,null,null,null,null,null,null,null,null,null,"Gross Interest",null,null,"Tax Withheld"]
[]
[]
[]
[]
[]
[]
[null,null,null,{"$f":"IF(finalise=\"\",\"\",IF(AND(atointyn=\"No\",SUM(O104:T109)=0),\"Input required\",\"\"))","v":""},null,null,null,null,null,null,null,null,null,null,null,null,null,null,null,null,null,null,null,null,null,null,null,null,null,null,null,null,null,null,null,null,null,{"$f":"IF(D110=\"\",0,1)","v":0}]
[]
[null,null,null,"Did you receive any DIVIDENDS from share investments?",null,null,null,null,null,null,null,null,null,null,null,null,null,null,null,null,null,{"$f":"IF(B112=\"\",\"\",B112)","v":""}]
[null,null,null,"You need to declare these even if they were automatically reinvested."]
[]
[null,null,null,"These details are usually available from the ATO. Do you want us to rely on the ATO information?",null,null,null,null,null,null,null,null,null,null,null,null,null,null,null,null,null,{"$f":"IF(B115=\"\",\"\",B115)","v":""}]
[]
[]
[null,null,null,"Please provide as much of the following information as you can, or attach document copies:"]
[]
[null,null,null,"Name of Company",null,null,null,null,null,null,null,"ASX\nCode",null,"Number of\nshares held",null,null,"Dividends Received",null,null,null,null,null,"Franking",null,"Tax"]
[null,null,null,null,null,null,null,null,null,null,null,null,null,null,null,null,"Unfranked",null,null,"Franked",null,null,"Credits",null,"Withheld"]
[]
[]
[]
[]
[]
[]
[null,null,null,{"$f":"IF(finalise=\"\",\"\",IF(AND(atodivsyn=\"No\",SUM(N122:Z127)=0),\"Input required\",\"\"))","v":""},null,null,null,null,null,null,null,null,null,null,null,null,null,null,null,null,null,null,null,null,null,null,null,null,null,null,null,null,null,null,null,null,null,{"$f":"IF(D128=\"\",0,1)","v":0}]
[]
[null,null,null,"Did you receive shares or options as part of an EMPLOYEE SHARE PLAN?",null,null,null,null,null,null,null,null,null,null,null,null,null,null,null,null,null,{"$f":"IF(B130=\"\",\"\",B130)","v":""}]
[]
[null,null,null,{"$f":"IF(esasyn=\"Yes\",\"Please attach the relevant documents from your employer.\",\"\")","v":""}]
[]
[null,null,null,"Did you receive any income from MANAGED INVESTMENTS?",null,null,null,null,null,null,null,null,null,null,null,null,null,null,null,null,null,{"$f":"IF(B134=\"\",\"\",B134)","v":""}]
[null,null,null,"(NOT including superannuation funds)"]
[null,null,null,{"$f":"IF(mgdinvyn=\"Yes\",\"Your fund manager should have provided you with a Tax Statement. Please attach a copy.\",\"\")","v":""}]
[]
[]
[null,null,null,"Do you run a BUSINESS of any kind?"]
[null,null,null,"(Whether as a Sole Trader or through another structure such as a Partnership, Trust or Company)?",null,null,null,null,null,null,null,null,null,null,null,null,null,null,null,null,null,{"$f":"IF(B139=\"\",\"\",B139)","v":""}]
[]
[null,null,null,{"$f":"IF(businessyn=\"Yes\",\"This type of income is outside the scope of this form. Please see the Business Checklist on our website\",\"\")","v":""}]
[null,null,null,{"$f":"IF(businessyn=\"Yes\",\"and supply all relevant information listed thereon.\",\"\")","v":""}]
[]
[]
[null,null,null,"CAPITAL ITEMS. Have you sold or otherwise disposed of any shares, property or cryptocurrency?",null,null,null,null,null,null,null,null,null,null,null,null,null,null,null,null,null,{"$f":"IF(B146=\"\",\"\",B146)","v":""}]
[]
[null,null,null,"Please provide the following details AND attach supporting documents:"]
[]
[null,null,null,"Asset Description\n(eg: Share / Crypto Code or Property Address)",null,null,null,null,null,null,null,"Date of Purchase",null,null,"Purchase price\n(see Note 1)",null,null,"Date of\nSale",null,null,"Sale Proceeds\n(see Note 2)",null,null,"Share of\nownership"]
[]
[]
[]
[]
[]
[]
[]
[]
[]
[]
[null,null,null,{"$f":"IF(finalise=\"\",\"\",IF(AND(cgtyn=\"Yes\",SUM(O152:Q160)+SUM(U152:W160)=0),\"Input required\",\"\"))","v":""},null,null,null,null,null,null,null,null,null,null,null,null,null,null,null,null,null,null,null,null,null,null,null,null,null,null,null,null,null,null,null,null,null,{"$f":"IF(D161=\"\",0,1)","v":0}]
[null,null,null,"Note 1:  Purchase price should include all incidental costs (eg: legal fees, stamp duties, valuations, registrations)."]
[null,null,null,"Note 2:  Sale Proceeds should be the net amount remaining AFTER deducting any selling expenses (eg: commissions, legal fees)."]
[]
[]
[null,null,null,"Did you receive any FOREIGN INCOME? (eg: foreign pensions, or from working overseas)?",null,null,null,null,null,null,null,null,null,null,null,null,null,null,null,null,null,{"$f":"IF(B166=\"\",\"\",B166)","v":""}]
[]
[null,null,null,"Please describe the nature of the income and the amount received:"]
[]
[null,null,null,"Type of Income",null,null,null,null,null,null,null,"Country",null,null,null,null,"Gross Amount",null,null,"Tax Withheld",null,null,"Currency"]
[]
[]
[]
[null,null,null,{"$f":"IF(finalise=\"\",\"\",IF(AND(forincyn=\"Yes\",SUM(Q171:V173)=0),\"Input required\",\"\"))","v":""},null,null,null,null,null,null,null,null,null,null,null,null,null,null,null,null,null,null,null,null,null,null,null,null,null,null,null,null,null,null,null,null,null,{"$f":"IF(D174=\"\",0,1)","v":0}]
[]
[]
[null,null,null,"Did you receive any RENTAL PROPERTY INCOME?",null,null,null,null,null,null,null,null,null,null,null,null,null,null,null,null,null,{"$f":"IF(B177=\"\",\"\",B177)","v":""}]
[]
[]
[null,null,null,"Are you attaching any annual rental summaries from estate agents or property managers?",null,null,null,null,null,null,null,null,null,null,null,null,null,null,null,null,null,{"$f":"IF(B180=\"\",\"\",B180)","v":""}]
[]
[null,null,null,{"$f":"IF(attachrentyn=\"Yes\",\"Please list below ONLY those income and expense items which DO NOT appear on any attached summaries:\",\"Please list below ALL income and expenses for each property:\")","v":"Please list below ALL income and expenses for each property:"}]
[null,null,null,"Pre-filled item descriptions are for your guidance only. You can change these by typing over them if necessary."]
[null,null,null,"(Include 100% of income and expenses, even if you are not the sole owner of the property)"]
[null,null,null,{"$f":"IF(finalise=\"\",\"\",IF(AND(rentyn=\"Yes\",SUM(L194:Z240)=0),\"Input required\",\"\"))","v":""},null,null,null,null,null,null,null,null,null,null,null,null,null,null,null,null,null,null,null,null,null,null,null,null,null,null,null,null,null,null,null,null,null,{"$f":"IF(D185=\"\",0,1)","v":0}]
[null,null,null,null,null,null,null,null,null,null,null,"Property 1",null,null,null,null,"Property 2",null,null,null,null,"Property 3"]
[null,null,null,"Property Address >>"]
[]
[]
[null,null,null,"No. of weeks rented (if not full year) >"]
[null,null,null,"INCOME"]
[null,null,null,"Gross Rent received"]
[null,null,null,"Reimbursements for water, electricity, etc"]
[null,null,null,"Total Rent and other income",null,null,null,null,null,null,null,{"$f":"SUM(L192:P193)","v":0},null,null,null,null,{"$f":"SUM(Q192:U193)","v":0},null,null,null,null,{"$f":"SUM(V192:Z193)","v":0}]
[null,null,null,"EXPENSES"]
[null,null,null,"Advertising"]
[null,null,null,"Agent / Management Fees"]
[null,null,null,"Borrowing or Refinancing Costs"]
[null,null,null,"Bank Charges"]
[null,null,null,"Body Corporate / Strata Levies"]
[null,null,null,"Cleaning"]
[null,null,null,"Electricity & Gas"]
[null,null,null,"Gardening / Lawnmowing"]
[null,null,null,"GST on Management Fees"]
[null,null,null,"Inspections, Reports, Valuations"]
[null,null,null,"Insurance - Building and/or Contents"]
[null,null,null,"Insurance - Landlord"]
[null,null,null,"Interest Charged on Loans and Borrowings"]
[null,null,null,"Land Tax"]
[null,null,null,"Lease Preparation Fees"]
[null,null,null,"Legal Expenses"]
[null,null,null,"Pest Control"]
[null,null,null,"Rates - Council"]
[null,null,null,"Rates - Water"]
[null,null,null,"Repairs - Electrical"]
[null,null,null,"Repairs - Plumbing"]
[null,null,null,"Repairs - Other"]
[null,null,null,"Stationery, Postage, Telephone"]
[null,null,null,"Other"]
[]
[]
[]
[]
[]
[]
[null,null,null,"CAPITAL PURCHASES"]
[null,null,null,"(eg: furniture, electrical equipment, carpets, hot water system, structural improvements)"]
[]
[null,null,null,"Please list separately, with purchase date",null,null,null,null,null,null,null,"Date",null,"$",null,null,"Date",null,"$",null,null,"Date",null,"$"]
[]
[]
[]
[]
[]
[]
[]
[]
[]
[]
[null,null,null,"Total Costs & Expenses",null,null,null,null,null,null,null,null,null,{"$f":"SUM(N196:P239)","v":0},null,null,null,null,{"$f":"SUM(S196:U239)","v":0},null,null,null,null,{"$f":"SUM(X196:Z239)","v":0}]
[]
[null,null,null,"In addition to the above information, please attach copies of any depreciation or capital allowance schedules"]
[null,null,null,"(unless you have already provided these)."]
[]
[null,null,null,"Has KMT Consulting previously accounted for ALL of these properties?",null,null,null,null,null,null,null,null,null,null,null,null,null,null,null,null,null,{"$f":"IF(B245=\"\",\"\",B245)","v":""}]
[]
[null,null,null,"Please provide the following information (unless you have already done so in a previous year):"]
[]
[null,null,null,null,null,null,null,null,null,null,null,"Property 1",null,null,null,null,"Property 2",null,null,null,null,"Property 3"]
[null,null,null,"Your ownership percentage"]
[null,null,null,"Date of purchase"]
[null,null,null,"Date you started collecting rent"]
[null,null,null,"Purchase price (incl. all incidentals)"]
[null,null,null,"Borrowing expenses"]
[]
[]
[null,null,null,"Have you received ANY OTHER INCOME which has not yet been included?",null,null,null,null,null,null,null,null,null,null,null,null,null,null,null,null,null,{"$f":"IF(B257=\"\",\"\",B257)","v":""}]
[]
[null,null,null,"Please provide details below:"]
[]
[null,null,null,"Type and source of income",null,null,null,null,null,null,null,null,null,null,"Gross",null,null,"Tax Withheld"]
[]
[]
[]
[null,null,null,{"$f":"IF(finalise=\"\",\"\",IF(AND(otherincyn=\"Yes\",SUM(O262:T264)=0),\"Input required\",\"\"))","v":""},null,null,null,null,null,null,null,null,null,null,null,null,null,null,null,null,null,null,null,null,null,null,null,null,null,null,null,null,null,null,null,null,null,{"$f":"IF(D265=\"\",0,1)","v":0}]
[]
[]
[]
[]
[null,null,null,"DEDUCTIBLE EXPENSES"]
[]
[null,null,null,"Please ensure that you list ONLY those expenses which you have incurred to earn your income. There must be a clear connection"]
[null,null,null,"between the nature of the expense and your occupation. Where expenses are partly for private purposes, these must be"]
[null,null,null,"apportioned on a reasonable basis. You are required to retain documentary evidence of all claims for at least 5 years."]
[null,null,null,"If requested by the ATO, you MUST be able to substantiate all claims listed here."]
[]
[null,null,null,"Did you incur any deductible expenses AS AN EMPLOYEE?",null,null,null,null,null,null,null,null,null,null,null,null,null,null,null,null,null,{"$f":"IF(B277=\"\",\"\",B277)","v":""}]
[]
[null,null,null,{"$f":"IF(AND(employeeyn=\"No\",wreyn=\"Yes\"),\"You have NOT indicated any employee income above. Please check before proceeding.\",IF(wreyn=\"No\",\"The Work-Related Expenses section of this form is not applicable.\",\"\"))","v":""}]
[]
[]
[null,null,null,"Did you have to use your personal CAR for work purposes (other than to or from work)?",null,null,null,null,null,null,null,null,null,null,null,null,null,null,null,null,null,{"$f":"IF(B282=\"\",\"\",B282)","v":""}]
[null,null,null,"(eg: for mail or banking, between jobs or offices, visiting customers or suppliers, attending training)?"]
[]
[]
[null,null,null,"Did you travel more than 5,000 kms for work purposes?",null,null,null,null,null,null,null,null,null,null,null,null,null,null,null,null,null,{"$f":"IF(B286=\"\",\"\",B286)","v":""}]
[]
[null,null,null,"Please complete the following information (reasonable estimates are acceptable):"]
[]
[null,null,null,"Destination and purpose of trip",null,null,null,null,null,null,null,null,null,null,"Kms per trip",null,"No of trips",null,"Total Kms"]
[]
[null,null,null,null,null,null,null,null,null,null,null,null,null,null,null,null,null,null,{"$f":"IF(Q292=\"\",O292,Q292*O292)","v":0}]
[null,null,null,null,null,null,null,null,null,null,null,null,null,null,null,null,null,null,0]
[null,null,null,null,null,null,null,null,null,null,null,null,null,null,null,null,null,null,0]
[null,null,null,null,null,null,null,null,null,null,null,null,null,null,null,null,null,null,0]
[null,null,null,null,null,null,null,null,null,null,null,null,null,null,null,null,null,null,0]
[null,null,null,null,null,null,null,null,null,null,null,null,null,null,null,null,null,null,0]
[null,null,null,null,null,null,null,null,null,null,null,null,null,null,null,null,null,null,0]
[null,null,null,null,null,null,null,null,null,null,null,null,null,null,null,null,null,null,0]
[null,null,null,null,null,null,null,null,null,null,null,null,null,null,null,null,null,null,0]
[null,null,null,null,null,null,null,null,null,null,null,null,null,null,null,null,null,null,0]
[null,null,null,null,null,null,null,null,null,null,null,null,null,null,null,null,null,null,0]
[null,null,null,null,null,null,null,null,null,null,null,null,null,null,null,null,null,null,0]
[null,null,null,null,null,null,null,null,null,null,null,null,null,null,null,null,null,null,0]
[null,null,null,null,null,null,null,null,null,null,null,null,null,null,null,null,null,null,0]
[null,null,null,null,null,null,null,null,null,null,null,null,null,null,null,null,null,null,0]
[null,null,null,{"$f":"IF(finalise=\"\",\"\",IF(AND(caryn=\"Yes\",fivekyn=\"No\",SUM(Q292:W306)=0),\"Input required\",\"\"))","v":""},null,null,null,null,null,null,null,null,null,null,null,null,null,null,{"$f":"SUM(S292:T306)","v":0},null,null,null,null,null,null,null,null,null,null,null,null,null,null,null,null,null,null,{"$f":"IF(D307=\"\",0,1)","v":0}]
[]
[]
[null,null,null,"Do you want to base your claim on a valid LOG BOOK which is less than 5 years old?",null,null,null,null,null,null,null,null,null,null,null,null,null,null,null,null,null,{"$f":"IF(B310=\"\",\"\",B310)","v":""}]
[]
[null,null,null,{"$f":"IF(logbkyn=\"No\",\"The claim on your tax return will be limited to 5,000 kms.\",\"\")","v":""}]
[]
[null,null,null,"What was the main purpose of your travel?"]
[]
[]
[null,null,null,"Please provide the following information:"]
[]
[null,null,null,"What was the main purpose of your travel?"]
[]
[]
[null,null,null,"Make & model of vehicle >",null,null,null,null,null,null,null,null,null,null,null,null,null,null,"Purchase price > ",null,null,null,null,null,"Date purchased > "]
[]
[null,null,null,"Work-related use of vehicle as calculated in log book >"]
[]
[null,null,null,"Vehicle Expenses Incurred",null,null,null,null,null,null,null,"$"]
[null,null,null,"Fuel & Oil"]
[null,null,null,"Registration"]
[null,null,null,"CTP greenslip insurance"]
[null,null,null,"Other insurance"]
[null,null,null,"Service"]
[null,null,null,"Tyres"]
[null,null,null,"Other repairs"]
[null,null,null,"Lease payments"]
[null,null,null,"Loan Interest (NOT repayments - see below)"]
[]
[]
[null,null,null,"Total Vehicle Expenses",null,null,null,null,null,null,null,{"$f":"SUM(L326:N337)","v":0}]
[null,null,null,{"$f":"IF(finalise=\"\",\"\",IF(AND(logbkyn=\"Yes\",SUM(L327:N337)=0),\"Input required\",\"\"))","v":""},null,null,null,null,null,null,null,null,null,null,null,null,null,null,null,null,null,null,null,null,null,null,null,null,null,null,null,null,null,null,null,null,null,{"$f":"IF(D339=\"\",0,1)","v":0}]
[null,null,null,"Note:  If loan interest is not known, please provide the following:"]
[]
[null,null,null,"Amount borrowed"]
[null,null,null,"Date of first repayment"]
[null,null,null,"Amount of each repayment"]
[null,null,null,"Repayment frequency",null,null,null,null,null,null,null,null,null,null,"(ie: Weekly / Fortnightly / Monthly)"]
[null,null,null,"Term of the loan (number of years)"]
[null,null,null,"Final residual payment required (if any)?"]
[]
[]
[]
[null,null,null,"Did you incur any other TRAVEL EXPENSES (other than to-or-from work)?",null,null,null,null,null,null,null,null,null,null,null,null,null,null,null,null,null,{"$f":"IF(B351=\"\",\"\",B351)","v":""}]
[null,null,null,"(eg: Tolls, taxis, trains, parking, airfares, meals, accommodation)"]
[]
[null,null,null,"Please provide the following information:"]
[]
[null,null,null,"Type of travel expense and purpose of trip",null,null,null,null,null,null,null,null,null,null,"Cost $"]
[]
[]
[]
[]
[]
[]
[]
[]
[]
[]
[null,null,null,{"$f":"IF(finalise=\"\",\"\",IF(AND(travyn=\"Yes\",SUM(O357:Q366)=0),\"Input required\",\"\"))","v":""},null,null,null,null,null,null,null,null,null,null,null,null,null,null,null,null,null,null,null,null,null,null,null,null,null,null,null,null,null,null,null,null,null,{"$f":"IF(D367=\"\",0,1)","v":0}]
[]
[null,null,null,"Did you have to wear PROTECTIVE CLOTHING or a UNIFORM?",null,null,null,null,null,null,null,null,null,null,null,null,null,null,null,null,null,{"$f":"IF(B369=\"\",\"\",B369)","v":""}]
[null,null,null,"Note that conventional clothing - (eg: a business suit or general office attire) - is NOT deductible."]
[]
[null,null,null,"Please provide the following information:"]
[null,null,null,"For your convenience, the most common items have been pre-filled. You can delete or change them if necessary."]
[]
[null,null,null,"Clothing and Uniform expense details",null,null,null,null,null,null,null,null,null,null,"Cost $"]
[null,null,null,"Uniforms"]
[null,null,null,"Boots"]
[null,null,null,"Gloves, Safety wear"]
[null,null,null,"Hats, Sunscreen"]
[null,null,null,"Other protective clothing"]
[]
[]
[null,null,null,{"$f":"IF(finalise=\"\",\"\",IF(AND(clothyn=\"Yes\",SUM(O376:Q382)=0),\"Input required\",\"\"))","v":""},null,null,null,null,null,null,null,null,null,null,null,null,null,null,null,null,null,null,null,null,null,null,null,null,null,null,null,null,null,null,null,null,null,{"$f":"IF(D383=\"\",0,1)","v":0}]
[]
[null,null,null,"Did you undertake EDUCATION which directly relates to your employment?",null,null,null,null,null,null,null,null,null,null,null,null,null,null,null,null,null,{"$f":"IF(B385=\"\",\"\",B385)","v":""}]
[]
[null,null,null,"Please provide the following information:"]
[null,null,null,"For your convenience, the most common items have been pre-filled. You can delete or change them if necessary."]
[]
[null,null,null,"Name of course:"]
[]
[null,null,null,"Education expenses incurred",null,null,null,null,null,null,null,null,null,null,"Cost $",null,null,"%"]
[null,null,null,"Course fees",null,null,null,null,null,null,null,null,null,null,null,null,null,"Work-related use\nif NOT\n100%"]
[null,null,null,"Textbooks"]
[null,null,null,"Stationery"]
[null,null,null,"Travel to courses (trains, buses, taxis)"]
[null,null,null,"Travel to courses (by car) - Number of kilometers only",null,null,null,null,null,null,null,null,null,null,"kms"]
[null,null,null,"Internet use"]
[null,null,null,"Computers / Electronic tablets"]
[null,null,null,"Computer software & accessories"]
[]
[]
[null,null,null,{"$f":"IF(finalise=\"\",\"\",IF(AND(educyn=\"Yes\",SUM(O393:Q402)=0),\"Input required\",\"\"))","v":""},null,null,null,null,null,null,null,null,null,null,null,null,null,null,null,null,null,null,null,null,null,null,null,null,null,null,null,null,null,null,null,null,null,{"$f":"IF(D403=\"\",0,1)","v":0}]
[]
[null,null,null,"Did you incur any OTHER WORK-RELATED EXPENSES?",null,null,null,null,null,null,null,null,null,null,null,null,null,null,null,null,null,{"$f":"IF(B405=\"\",\"\",B405)","v":""}]
[null,null,null,"(EG: Union fees, tools, equipment, stationery, telephone, home office)?"]
[]
[null,null,null,"Please provide the following information:"]
[null,null,null,"For your convenience, the most common items have been pre-filled. You can delete or change them if necessary."]
[]
[null,null,null,"Other work-related expenses",null,null,null,null,null,null,null,null,null,null,"Cost $",null,null,"%"]
[null,null,null,"Union fees",null,null,null,null,null,null,null,null,null,null,null,null,null,"Work-related use\nif NOT\n100%"]
[null,null,null,"Other professional memberships"]
[null,null,null,"Licences, registrations"]
[null,null,null,"Training, Professional development"]
[null,null,null,"Stationery, Resources, Ink"]
[null,null,null,"Tools & equipment (see below if more than $300 per item)"]
[null,null,null,"Computer software & accessories"]
[null,null,null,"Internet use *"]
[null,null,null,"Mobile phone use *"]
[null,null,null,"Electricity & Gas *"]
[null,null,null,"Home Office expenses - enter total hours, NOT dollars **",null,null,null,null,null,null,null,null,null,null,"Total hours"]
[]
[]
[]
[]
[]
[]
[]
[]
[]
[]
[null,null,null,{"$f":"IF(finalise=\"\",\"\",IF(AND(otherwreyn=\"Yes\",SUM(O412:Q432)+SUM(O442:Q448)=0),\"Input required\",\"\"))","v":""},null,null,null,null,null,null,null,null,null,null,null,null,null,null,null,null,null,null,null,null,null,null,null,null,null,null,null,null,null,null,null,null,null,{"$f":"IF(D433=\"\",0,1)","v":0}]
[null,null,null," *  Claims for these expenses are attracting increasing scrutiny by the ATO."]
[null,null,null,"     In most cases, a 4-week diary is required to substantiate the work-related portion of use."]
[null,null,null," **  The \"per hour\" claim method includes electricity, gas, phone and internet, and requires a full-year diary."]
[]
[]
[null,null,null,"If you purchased tools or equipment costing MORE THAN $300 each, please provide details here:",null,null,null,null,null,null,null,null,null,null,null,null,null,null,null,null,null,{"$f":"IF(B439=\"\",\"\",B439)","v":""}]
[]
[null,null,null,"Description of tools or equipment",null,null,null,null,null,null,null,null,null,null,"Cost $"]
[]
[]
[]
[]
[]
[]
[]
[]
[]
[null,null,null,"Did you make any DONATIONS to any registered charities or School Building Funds?",null,null,null,null,null,null,null,null,null,null,null,null,null,null,null,null,null,{"$f":"IF(B451=\"\",\"\",B451)","v":""}]
[]
[null,null,null,"Please provide the following details:"]
[]
[null,null,null,"Name of Charity or Deductible Recipient",null,null,null,null,null,null,null,null,null,null,"$ Amount"]
[]
[]
[]
[]
[]
[]
[]
[]
[]
[]
[]
[]
[]
[]
[]
[]
[null,null,null,{"$f":"IF(finalise=\"\",\"\",IF(AND(donationsyn=\"Yes\",SUM(O456:Q471)=0),\"Input required\",\"\"))","v":""},null,null,null,null,null,null,null,null,null,null,null,null,null,null,null,null,null,null,null,null,null,null,null,null,null,null,null,null,null,null,null,null,null,{"$f":"IF(D472=\"\",0,1)","v":0}]
[]
[]
[null,null,null,"Did you pay another TAX AGENT (ie: not KMT Consulting) for your PRIOR YEAR tax return?",null,null,null,null,null,null,null,null,null,null,null,null,null,null,null,null,null,{"$f":"IF(B475=\"\",\"\",B475)","v":""}]
[]
[null,null,null,"Please provide the following details:"]
[]
[null,null,null,"Name of Tax Agent (if known)",null,null,null,null,null,null,null,null,null,null,"$ Amount"]
[]
[null,null,null,{"$f":"IF(finalise=\"\",\"\",IF(AND(otheragentyn=\"Yes\",O480=0),\"Input required\",\"\"))","v":""},null,null,null,null,null,null,null,null,null,null,null,null,null,null,null,null,null,null,null,null,null,null,null,null,null,null,null,null,null,null,null,null,null,{"$f":"IF(D481=\"\",0,1)","v":0}]
[]
[null,null,null,"Did you make any DEDUCTIBLE SUPER CONTRIBUTIONS (OTHER THAN through your employer)?",null,null,null,null,null,null,null,null,null,null,null,null,null,null,null,null,null,{"$f":"IF(B483=\"\",\"\",B483)","v":""}]
[]
[]
[null,null,null,"Has the Fund acknowledged your intention to claim these contributions?",null,null,null,null,null,null,null,null,null,null,null,null,null,{"$f":"IF(AND(dedsuperyn=\"Yes\",noiyn=\"\"),\"Please select >\",\"\")","v":""},null,null,null,{"$f":"IF(B486=\"\",\"\",B486)","v":""},null,null,null,null,null,null,null,null,null,null,null,null,null,null,null,{"$f":"IF(R486=\"\",0,1)","v":0}]
[null,null,null,{"$f":"IF(AND(dedsuperyn=\"Yes\",noiyn=\"No\"),\"You will need to notify your Fund AND receive acknowledgement before claiming these contributions.\",\"\")","v":""}]
[]
[null,null,null,"Please provide the following details:"]
[]
[null,null,null,"Name of Superannuation Fund",null,null,null,null,null,null,null,"ABN of Fund",null,null,"Member or Account No.",null,null,null,null,"$ Amount"]
[]
[]
[null,null,null,{"$f":"IF(finalise=\"\",\"\",IF(AND(dedsuperyn=\"Yes\",SUM(T492:V493)=0),\"Input required\",\"\"))","v":""},null,null,null,null,null,null,null,null,null,null,null,null,null,null,null,null,null,null,null,null,null,null,null,null,null,null,null,null,null,null,null,null,null,{"$f":"IF(D494=\"\",0,1)","v":0}]
[]
[null,null,null,"Did you incur any OTHER DEDUCTIBLE EXPENSES which you have NOT YET INCLUDED?",null,null,null,null,null,null,null,null,null,null,null,null,null,null,null,null,null,{"$f":"IF(B496=\"\",\"\",B496)","v":""}]
[null,null,null,"(eg:  Income protection insurance; Expenses relating to dividend or investment income)?"]
[]
[null,null,null,"Please provide details below:"]
[]
[null,null,null,"Description of Expense",null,null,null,null,null,null,null,null,null,null,null,null,null,"$ Amount"]
[]
[]
[]
[null,null,null,{"$f":"IF(finalise=\"\",\"\",IF(AND(otherdedsyn=\"Yes\",SUM(R502:T504)=0),\"Input required\",\"\"))","v":""},null,null,null,null,null,null,null,null,null,null,null,null,null,null,null,null,null,null,null,null,null,null,null,null,null,null,null,null,null,null,null,null,null,{"$f":"IF(D505=\"\",0,1)","v":0}]
[]
[]
[]
[]
[]
[null,null,null,"OTHER ITEMS"]
[]
[]
[null,null,null,"Did you have PRIVATE HEALTH INSURANCE?",null,null,null,null,null,null,null,null,null,null,null,null,null,null,null,null,null,{"$f":"IF(B514=\"\",\"\",B514)","v":""}]
[]
[]
[null,null,null,"These details are usually available from the ATO. Do you want us to rely on the ATO information?",null,null,null,null,null,null,null,null,null,null,null,null,null,null,null,null,null,{"$f":"IF(B517=\"\",\"\",B517)","v":""}]
[]
[null,null,null,"Please provide the following details, or attach the annual tax statement from your insurer."]
[]
[null,null,null,"Member Number",null,null,null,"Fund ID",null,"Eligible premiums",null,null,"Govt Rebate received",null,null,"Rebate Code"]
[]
[]
[]
[]
[]
[]
[null,null,null,"The number of days you had an appropriate level of hospital cover (if not for the whole year):"]
[]
[]
[null,null,null,"How many DEPENDANT CHILDREN do you have?"]
[]
[null,null,null,"Do you have a SPOUSE (either married or de-facto)?",null,null,null,null,null,null,null,null,null,null,null,null,null,null,null,null,null,{"$f":"IF(B533=\"\",\"\",B533)","v":""}]
[]
[null,null,null,"Please provide the following information for your spouse:",null,null,null,null,null,null,null,null,null,null,null,null,null,null,null,null,null,{"$f":"IF(B535=\"\",\"\",B535)","v":""}]
[null,null,null,"(NOT REQUIRED if this information has been separately provided by your spouse)"]
[]
[null,null,null,"First Name:",null,null,null,null,null,null,null,null,null,null,"Family name:  ",null,null,null,null,null,null,null,null,null,"Date of Birth:  "]
[null,null,null,null,null,null,null,null,null,null,null,null,null,null,null,null,null,null,null,null,null,null,null,null,null,null,"dd/mm/yy"]
[null,null,null,"SPOUSE income details:"]
[null,null,null,"Taxable Income:"]
[null,null,null,"Reportable Fringe Benefits:"]
[null,null,null,"Reportable Super Contributions:"]
[null,null,null,"Govt pensions not included above:"]
[null,null,null,"Exempt pensions not included above:"]
[null,null,null,"Child support paid (if any):"]
[]
[]
[]
[]
[]
[null,null,null,"BANKING DETAILS"]
[]
[null,null,null,"It is now mandatory to provide BANK ACCOUNT DETAILS for ATO refunds. Please select ONE ONLY of the following options:"]
[]
[null,null,null,"1.","KMT Consulting already has my bank account details and they have not changed.",null,null,null,null,null,null,null,null,null,null,null,null,null,null,null,null,{"$f":"IF(bank1yn=\"Yes\",\"Yes\",\"\")","v":""}]
[]
[null,null,null,"2.","My details have changed, OR I would like to provide them again.",null,null,null,null,null,null,null,null,null,null,null,null,null,null,null,null,{"$f":"IF(bank2yn=\"Yes\",\"Yes\",\"\")","v":""}]
[]
[null,null,null,"3.","I am a new client, OR I am providing these details for the first time.",null,null,null,null,null,null,null,null,null,null,null,null,null,null,null,null,{"$f":"IF(bank3yn=\"Yes\",\"Yes\",\"\")","v":""}]
[]
[null,null,null,"If option 2 or 3 is chosen . . . ",null,null,null,null,null,null,null,null,null,null,null,null,null,{"$f":"IF(finalise=\"\",\"\",IF(AND(bank1yn=\"\",bank2yn=\"\",bank3yn=\"\"),\"Please select one of the above options\",\"\"))","v":""},null,null,null,null,null,null,null,null,null,null,null,null,null,null,null,null,null,null,null,{"$f":"IF(R562=\"\",0,1)","v":0}]
[null,null,null,"Please ensure that the following details are ACCURATELY provided."]
[]
[null,null,null,"Account Name",null,null,null,null,null,null,null,null,null,"BSB",null,null,"Account No."]
[]
[null,null,null,{"$f":"IF(finalise=\"\",\"\",IF(AND(OR(bank2yn=\"Yes\",bank3yn=\"Yes\"),OR(bankinput=\"\",N566=\"\",Q566=\"\")),\"Input required\",\"\"))","v":""},null,null,null,null,null,null,null,null,null,"(6 digits)",null,null,"(up to 9 digits)",null,null,null,null,null,null,null,null,null,null,null,null,null,null,null,null,null,null,null,null,{"$f":"IF(D567=\"\",0,1)","v":0}]
[]
[]
[]
[]
[]
[]
[null,null,null,"FINALISATION OF THE FORM AND LIST OF DOCUMENTS REQUIRED",null,null,null,null,null,null,null,null,null,null,null,null,null,null,null,null,null,null,null,null,null,null,null,null,null,null,null,null,null,null,null,null,null,{"$f":"SUM(AL3:AL573)","v":0}]
[]
[null,null,null,"Please ensure that you have completed ALL of the information which is relevant to your circumstances.",null,null,null,null,null,null,null,null,null,null,null,null,null,null,null,null,null,{"$f":"IF(B576=\"\",\"\",B576)","v":""}]
[null,null,null,"If you have any questions or need to provide additional information, please call or email us."]
[]
[null,null,null,"Or, you can add a message here:"]
[]
[]
[]
[]
[]
[]
[]
[]
[]
[null,null,null,{"$f":"IF(AL574>0,\"Some mandatory input is missing. It is indicated by RED FONT above. Please check and correct before proceeding.\",\"\")","v":""}]
[]
[null,null,null,"Save this file to your device."]
[null,null,null,"Then send it to us either by email or by using the \"Online Submission\" page on our website."]
[]
[null,null,null,"You will also need to include the attachments listed below (if any):"]
[]
[null,null,null,{"$f":"IF(AL596=\"\",\"\",\"Proof of identity (eg: birth certificate, driver's licence or passport)\")","v":""},null,null,null,null,null,null,null,null,null,null,null,null,null,null,null,null,null,null,null,null,null,null,null,null,null,null,null,null,null,null,null,null,null,{"$f":"IF(existingyn=\"No\",\"Yes\",\"\")","v":""}]
[null,null,null,{"$f":"IF(AL597=\"\",\"\",\"Employer payment summaries which are NOT available on MyGov\")","v":""},null,null,null,null,null,null,null,null,null,null,null,null,null,null,null,null,null,null,null,null,null,null,null,null,null,null,null,null,null,null,null,null,null,{"$f":"IF(pmtsumyn=\"No\",\"Yes\",\"\")","v":""}]
[null,null,null,{"$f":"IF(AL598=\"\",\"\",\"Employer Termination Statements which are NOT available on MyGov\")","v":""},null,null,null,null,null,null,null,null,null,null,null,null,null,null,null,null,null,null,null,null,null,null,null,null,null,null,null,null,null,null,null,null,null,{"$f":"IF(etpattachyn=\"No\",\"Yes\",\"\")","v":""}]
[null,null,null,{"$f":"IF(AL599=\"\",\"\",\"Details of Government pensions or allowances received\")","v":""},null,null,null,null,null,null,null,null,null,null,null,null,null,null,null,null,null,null,null,null,null,null,null,null,null,null,null,null,null,null,null,null,null,{"$f":"IF(AND(atopensyn=\"No\",SUM(O88:T89)=0),\"Yes\",\"\")","v":""}]
[null,null,null,{"$f":"IF(AL600=\"\",\"\",\"Payment summaries from your superannuation fund(s)\")","v":""},null,null,null,null,null,null,null,null,null,null,null,null,null,null,null,null,null,null,null,null,null,null,null,null,null,null,null,null,null,null,null,null,null,{"$f":"IF(supfundyn=\"Yes\",\"Yes\",\"\")","v":""}]
[null,null,null,{"$f":"IF(AL601=\"\",\"\",\"Share dividend statements (unless ALL required information has been provided above)\")","v":""},null,null,null,null,null,null,null,null,null,null,null,null,null,null,null,null,null,null,null,null,null,null,null,null,null,null,null,null,null,null,null,null,null,{"$f":"IF(atodivsyn=\"No\",\"Yes\",\"\")","v":""}]
[null,null,null,{"$f":"IF(AL602=\"\",\"\",\"Share plan statements provided to you by your employer\")","v":""},null,null,null,null,null,null,null,null,null,null,null,null,null,null,null,null,null,null,null,null,null,null,null,null,null,null,null,null,null,null,null,null,null,{"$f":"IF(esasyn=\"Yes\",\"Yes\",\"\")","v":""}]
[null,null,null,{"$f":"IF(AL603=\"\",\"\",\"Tax summary information from your managed fund(s)\")","v":""},null,null,null,null,null,null,null,null,null,null,null,null,null,null,null,null,null,null,null,null,null,null,null,null,null,null,null,null,null,null,null,null,null,{"$f":"IF(mgdinvyn=\"Yes\",\"Yes\",\"\")","v":""}]
[null,null,null,{"$f":"IF(AL604=\"\",\"\",\"Details of business income and expenses. (See the Business Checklist on our website).\")","v":""},null,null,null,null,null,null,null,null,null,null,null,null,null,null,null,null,null,null,null,null,null,null,null,null,null,null,null,null,null,null,null,null,null,{"$f":"IF(businessyn=\"Yes\",\"Yes\",\"\")","v":""}]
[null,null,null,{"$f":"IF(AL605=\"\",\"\",\"Purchase and sale documents for capital gains or losses\")","v":""},null,null,null,null,null,null,null,null,null,null,null,null,null,null,null,null,null,null,null,null,null,null,null,null,null,null,null,null,null,null,null,null,null,{"$f":"IF(cgtyn=\"Yes\",\"Yes\",\"\")","v":""}]
[null,null,null,{"$f":"IF(AL606=\"\",\"\",\"Annual rental summaries from estate agents or property managers\")","v":""},null,null,null,null,null,null,null,null,null,null,null,null,null,null,null,null,null,null,null,null,null,null,null,null,null,null,null,null,null,null,null,null,null,{"$f":"IF(attachrentyn=\"Yes\",\"Yes\",\"\")","v":""}]
[null,null,null,{"$f":"IF(AL607=\"\",\"\",\"Annual health insurance statement (unless ALL required information has been provided above)\")","v":""},null,null,null,null,null,null,null,null,null,null,null,null,null,null,null,null,null,null,null,null,null,null,null,null,null,null,null,null,null,null,null,null,null,{"$f":"IF(phiatoyn=\"No\",\"Yes\",\"\")","v":""}]
[]
[null,null,null,"END OF FORM"]